bitfinex-derivatives/quotes_ETHF0:USTF0_20250824
["timestamp","ask_amount","ask_price","bid_price","bid_amount"]
[1756071797167,1.3878,4804.1,4803.3,20.41742]
[1756071797357,2.0353,4804.1,4803.3,20.001]
[1756071797663,1.1293,4804.7,4803.6,1.04099]
[1756071797865,1.9617,4804.6,4803.7,19.993]
[1756071798068,0.6571,4804.5,4804.4,0.41632]
[1756071798361,0.6571,4804.5,4804.4,20.40832]
[1756071798763,3.2078,4805.6,4804.4,19.992]
[1756071798968,0.6571,4806.2,4806.0,0.41618]
[1756071799166,0.6571,4806.9,4806.6,0.41613]
[1756071799364,0.9634,4807.0,4806.7,19.991]
[1756071799674,2.2012,4806.9,4806.8,19.99]
[1756071799970,2.6924,4806.9,4806.8,19.99]
[1756071800164,1.9617,4806.9,4806.8,19.99]
[1756071800365,2.3512,4806.9,4806.8,19.99]
[1756071800562,2.6924,4806.9,4806.5,0.41614]
[1756071800768,0.6571,4806.7,4806.6,19.989]
[1756071800968,2.6924,4806.7,4806.6,19.989]
[1756071801168,3.2435,4806.7,4806.6,19.989]
[1756071801571,2.6924,4806.7,4806.6,19.989]
[1756071801867,2.2012,4806.7,4806.6,19.989]
[1756071802067,0.6571,4806.7,4806.6,19.989]
[1756071802267,1.8557,4807.0,4806.3,0.41616]
[1756071802464,0.6571,4806.6,4806.4,19.988]
[1756071802672,1.3878,4806.3,4806.2,3.2078]
[1756071802972,3.2435,4806.3,4806.2,19.987]
[1756071803270,1.86,4806.2,4806.0,0.17644642]
[1756071803466,1.86,4806.2,4806.1,19.983]
[1756071803673,2.2012,4806.2,4806.1,19.983]
[1756071804069,1.2818,4806.1,4805.5,33.1908]
[1756071804266,1.9617,4806.5,4805.6,19.982]
[1756071804568,0.7307,4806.3,4805.5,33.1908]
[1756071804772,0.6571,4806.2,4805.6,19.982]
[1756071804964,0.5511,4806.2,4805.5,33.1908]
[1756071805165,1.9389,4806.0,4805.6,19.981]
[1756071805373,0.6571,4805.8,4805.7,19.981]
[1756071806166,0.6571,4806.6,4805.7,19.979]
[1756071806366,0.6571,4806.4,4805.7,22.63534675]
[1756071806563,0.6571,4806.8,4806.3,0.41615]
[1756071806768,0.7307,4806.7,4806.4,19.978]
[1756071807069,2.5864,4806.5,4805.5,33.3596847]
[1756071807265,0.3412,4805.7,4805.6,19.978]
[1756071807462,2.6924,4805.7,4805.6,19.977]
[1756071807666,3.2371,4805.7,4805.6,19.977]
[1756071807968,3.2371,4805.7,4805.5,33.1908]
[1756071808268,3.2371,4805.7,4805.6,19.977]
[1756071808470,2.5855,4805.6,4805.5,33.1908]
[1756071808672,3.1302,4805.6,4805.5,53.1678]
[1756071808872,3.1302,4805.6,4805.5,3.2078]
[1756071809075,3.1302,4805.6,4805.5,23.1848]
[1756071809271,3.1302,4805.6,4805.5,3.2078]
[1756071809875,3.1302,4805.6,4805.5,23.1838]
[1756071810273,3.1302,4805.6,4805.5,3.2078]
[1756071810573,3.1302,4805.6,4805.5,23.1818]
[1756071811375,3.1302,4805.6,4805.5,19.974]
[1756071812376,0.6479,4805.6,4805.5,19.974]
[1756071813873,0.6479,4805.5,4805.4,0.41623]
[1756071814074,0.6479,4805.5,4805.4,20.38723]
[1756071814280,0.6479,4805.5,4805.3,0.41624]
[1756071814581,1.2495,4806.6,4805.4,19.97]
[1756071814779,0.5447,4806.5,4805.4,19.97]
[1756071814975,0.5447,4806.3,4805.4,19.97]
[1756071815180,3.2078,4806.7,4805.4,19.97]
[1756071815181,3.1302,4805.5,4805.4,19.97]
[1756071815385,0.6479,4805.5,4805.4,19.97]
[1756071815576,0.6479,4805.8,4805.4,20.38624]
[1756071816078,0.7048,4805.9,4805.4,20.38624]
[1756071816578,0.6479,4805.8,4805.4,20.38624]
[1756071817278,0.6479,4805.7,4805.4,20.38624]
[1756071817479,0.6479,4805.3,4805.2,0.41625]
[1756071817680,1.7891,4805.3,4805.2,20.38325]
[1756071817977,1.2328,4805.3,4804.9,3.2078]
[1756071818184,3.1302,4805.0,4804.9,3.2078]
[1756071818382,3.1302,4805.0,4804.9,23.1738]
[1756071819776,3.1302,4805.0,4804.9,3.2078]
[1756071819977,3.1302,4805.0,4804.9,23.1728]
[1756071821780,3.1302,4805.0,4804.9,3.2078]
[1756071822081,3.1302,4805.0,4804.9,23.1708]
[1756071822571,3.1302,4805.0,4804.9,23.1718]
[1756071823180,3.1302,4805.0,4804.9,3.2078]
[1756071823381,3.1302,4804.9,4804.8,19.963]
[1756071823582,1.2328,4804.0,4803.9,3.2078]
[1756071823886,3.1302,4804.0,4803.9,23.1698]
[1756071825278,3.1302,4804.0,4803.9,19.961]
[1756071826081,2.0459,4804.2,4803.9,19.961]
[1756071826276,0.7887,4804.1,4803.7,0.41638]
[1756071826476,0.6479,4803.9,4803.8,19.96]
[1756071826683,0.6479,4803.9,4803.7,0.41638]
[1756071826879,1.2495,4803.3,4802.8,3.2078]
[1756071827079,2.5855,4801.8,4801.7,3.2078]
[1756071827279,1.2328,4801.2,4801.1,3.2078]
[1756071827486,3.1302,4801.2,4801.1,3.2078]
[1756071827685,3.1302,4801.2,4801.1,23.1688]
[1756071827873,3.1302,4801.2,4801.1,3.2078]
[1756071828073,3.1302,4801.2,4801.1,23.1688]
[1756071828681,3.1302,4801.2,4801.1,3.2078]
[1756071828882,3.1302,4801.2,4800.4,3.2078]
[1756071829186,3.1302,4800.5,4800.4,3.2078]
[1756071829780,2.5855,4800.5,4800.4,3.2078]
[1756071829989,3.1302,4800.5,4800.4,19.959]
[1756071830684,1.8974,4800.4,4799.7,3.2078]
[1756071830988,0.6479,4799.8,4799.7,3.2078]
[1756071831483,0.6479,4799.8,4799.7,19.963]
[1756071831884,0.7048,4799.9,4799.7,19.963]
[1756071831885,1.3527,4800.7,4799.7,19.963]
[1756071832089,2.5855,4800.7,4799.7,19.963]
[1756071832384,2.5855,4800.7,4798.6,1.04207]
[1756071832385,0.6479,4799.6,4798.5,3.2078]
[1756071832587,0.6479,4799.4,4798.6,19.962]
[1756071833183,3.2078,4799.9,4798.6,19.962]
[1756071833184,1.4443,4799.2,4798.6,19.962]
[1756071833387,1.8807,4799.2,4798.6,19.962]
[1756071833582,0.6479,4799.2,4798.6,19.962]
[1756071833783,1.092,4799.7,4798.6,19.962]
[1756071833989,0.6479,4799.7,4799.0,0.41679]
[1756071834190,0.6479,4799.7,4798.7,2.75230066]
[1756071834389,0.6479,4800.1,4798.6,21.00407]
[1756071834590,0.6479,4800.1,4799.4,0.41675]
[1756071834791,1.0843,4800.1,4799.3,0.41676]
[1756071834985,0.6479,4800.3,4799.5,19.967]
[1756071835390,0.6479,4800.3,4799.0,3.2078]
[1756071835591,1.1926,4800.1,4799.1,19.967]
[1756071835784,1.2495,4800.0,4799.0,3.2078]
[1756071835984,0.6479,4799.6,4799.1,19.967]
[1756071836190,0.6479,4799.5,4799.2,19.97]
[1756071836491,1.7891,4799.4,4799.3,19.97]
[1756071836685,0.7048,4799.8,4799.0,3.2078]
[1756071836887,1.0843,4799.5,4799.0,3.2078]
[1756071837091,1.7891,4799.3,4799.1,19.97]
[1756071837387,0.6479,4799.2,4799.1,19.97]
[1756071837592,0.6817,4799.1,4799.0,3.2078]
[1756071837794,0.6817,4799.1,4799.0,19.97]
[1756071838895,0.6817,4799.5,4799.0,19.97]
[1756071839192,0.5335,4799.8,4799.0,19.97]
[1756071839393,1.92,4799.7,4799.0,19.97]
[1756071839589,0.7226,4799.6,4799.0,19.97]
[1756071839791,0.6817,4799.4,4799.1,19.972]
[1756071840096,2.6426,4799.3,4798.5,3.62464]
[1756071840291,1.92,4799.2,4798.6,19.972]
[1756071840600,1.92,4799.2,4798.5,3.62463]
[1756071840794,1.5817,4799.1,4798.5,3.62463]
[1756071840996,1.8549,4799.0,4798.6,19.972]
[1756071841294,0.6817,4798.9,4798.5,3.62463]
[1756071841489,0.6817,4798.9,4798.6,20.38882]
[1756071842596,0.6817,4799.9,4798.9,0.4168]
[1756071842900,0.6817,4799.9,4798.6,19.972]
[1756071842901,0.6817,4799.9,4799.0,19.971]
[1756071843194,1.9378,4799.7,4799.0,19.971]
[1756071843384,0.7226,4799.6,4799.1,19.973]
[1756071843584,1.1323,4799.5,4799.2,19.973]
[1756071843796,0.6817,4799.3,4799.2,19.973]
[1756071844294,0.6817,4800.8,4799.4,1.0419]
[1756071844499,0.6817,4801.3,4800.5,0.41666]
[1756071844695,0.6817,4801.3,4800.6,20.38865]
[1756071845096,1.5817,4801.3,4800.7,19.972]
[1756071845296,1.92,4801.3,4800.7,20.38864]
[1756071845492,1.2383,4801.3,4800.8,0.41663]
[1756071845687,0.6817,4801.2,4800.8,0.41663]
[1756071846296,0.6817,4801.2,4801.0,0.41661]
[1756071846693,3.2078,4801.5,4801.1,0.4166]
[1756071846897,0.6817,4801.3,4801.1,0.4166]
[1756071847194,1.4043,4801.3,4801.2,19.974]
[1756071848293,0.4506,4801.2,4800.7,0.17519628]
[1756071848592,0.6817,4801.1,4800.8,20.38863]
[1756071848798,0.6817,4801.1,4800.8,19.972]
[1756071849397,0.6817,4801.5,4800.8,19.972]
[1756071849601,1.92,4801.8,4801.1,0.41661]
[1756071850002,1.92,4801.8,4801.2,0.4166]
[1756071851097,0.7226,4801.8,4801.3,0.41659]
[1756071851300,0.6817,4801.5,4801.3,0.41659]
[1756071851694,0.6817,4801.5,4800.8,19.972]
[1756071851695,1.02,4802.1,4800.8,19.972]
[1756071851901,3.2078,4802.2,4802.0,0.41653]
[1756071852102,0.6817,4802.8,4802.6,0.41648]
[1756071852302,0.6817,4802.8,4802.7,0.41647]
[1756071852597,1.1323,4802.8,4802.7,0.41647]
[1756071852799,1.1323,4802.8,4802.1,19.97]
[1756071853000,0.4506,4802.8,4802.4,0.41649]
[1756071853198,1.92,4802.8,4802.5,19.97]
[1756071853394,0.6817,4802.6,4802.4,0.41649]
[1756071853595,0.55053402,4803.3,4803.2,0.54672]
[1756071853797,3.2078,4803.6,4803.5,0.4445]
[1756071853798,4.37245305,4803.6,4803.5,0.4445]
[1756071854002,3.58475305,4803.6,4803.5,1.0764]
[1756071854198,0.7226,4803.6,4803.5,1.0764]
[1756071854704,1.3212,4803.9,4803.5,1.4928]
[1756071854896,1.2383,4803.8,4803.7,0.4445]
[1756071855101,2.4944,4803.8,4803.7,0.4445]
[1756071855704,3.1761,4803.8,4803.7,0.4445]
[1756071855896,2.6426,4803.8,4803.7,0.4445]
[1756071856401,1.4043,4804.1,4803.8,0.6319]
[1756071856593,1.4043,4804.1,4804.0,0.4445]
[1756071856793,1.4043,4804.1,4804.0,1.0764]
[1756071858602,4.6121,4804.3,4804.1,0.6319]
[1756071858799,4.6121,4804.3,4804.2,0.4445]
[1756071858999,5.8504,4804.3,4804.2,0.4445]
[1756071859194,6.3839,4804.3,4804.2,0.4445]
[1756071859403,4.4461,4804.3,4803.9,19.967]
[1756071859600,3.1761,4804.0,4803.9,0.4445]
[1756071859803,3.1761,4804.0,4803.9,20.4075]
[1756071860002,3.1761,4804.0,4803.9,0.4445]
[1756071860199,3.1761,4804.0,4803.9,20.4075]
[1756071860398,3.1761,4804.0,4803.6,0.41639]
[1756071860604,1.2383,4803.7,4803.6,0.41639]
[1756071860802,3.1761,4803.7,4803.6,20.82089]
[1756071861905,3.1761,4803.7,4803.6,0.86089]
[1756071862101,1.2383,4803.7,4803.6,19.96]
[1756071862405,3.1761,4803.1,4803.0,3.6523]
[1756071862607,3.1761,4803.1,4803.0,23.6123]
[1756071864702,1.4043,4803.0,4802.4,0.6319]
[1756071864905,3.1761,4802.5,4802.4,0.4445]
[1756071865206,3.1761,4802.5,4802.4,20.4005]
[1756071866608,3.1761,4802.3,4802.2,3.2078]
[1756071866809,3.1761,4802.3,4802.2,23.1638]
[1756071867010,3.1761,4802.3,4802.0,0.41653]
[1756071867202,3.1761,4802.2,4802.1,19.955]
[1756071867401,1.9378,4802.1,4801.6,3.62436]
[1756071867603,3.1332,4801.8,4801.6,3.2078]
[1756071867807,3.1332,4801.8,4801.7,49.954]
[1756071870407,7.1332,4801.8,4801.7,49.955]
[1756071871104,7.1332,4801.8,4801.7,49.954]
[1756071871503,1.8949,4801.8,4801.7,49.954]
[1756071871709,2.6138,4801.8,4801.7,30.0]
[1756071871905,2.2341,4801.8,4801.7,50.5696]
[1756071872112,3.1431,4801.8,4801.7,49.954]
[1756071872301,2.3503,4801.8,4801.7,49.955]
[1756071872500,3.1431,4801.8,4801.7,49.955]
[1756071872708,3.1431,4801.8,4801.7,30.0]
[1756071872915,7.1431,4801.8,4801.7,49.955]
[1756071873406,0.909,4801.6,4801.5,0.00648937]
[1756071873609,0.909,4801.6,4801.5,19.96048937]
[1756071873610,3.1431,4801.6,4801.5,19.96048937]
[1756071875714,3.1431,4801.6,4801.5,0.46768937]
[1756071876216,3.1431,4801.6,4801.5,0.00648937]
[1756071876411,3.1431,4801.6,4801.5,20.42268937]
[1756071876813,3.1431,4801.6,4801.5,19.96148937]
[1756071877710,3.1431,4801.6,4801.5,0.00648937]
[1756071877912,3.1431,4801.6,4801.5,19.96048937]
[1756071878210,3.1431,4801.6,4801.5,0.00648937]
[1756071880519,3.1431,4801.6,4801.5,0.46768937]
[1756071880719,3.1431,4801.6,4801.5,0.00648937]
[1756071881415,3.1431,4801.6,4801.5,0.46768937]
[1756071882208,3.1431,4801.6,4801.5,0.00648937]
[1756071882717,3.1431,4801.3,4801.2,19.953]
[1756071882915,3.1431,4801.3,4801.2,20.4142]
[1756071884822,3.1431,4801.3,4801.2,0.4612]
[1756071885621,3.1431,4801.3,4801.2,20.4122]
[1756071888112,0.3392,4800.8,4800.7,0.6156]
[1756071888312,1.0222,4800.8,4800.7,21.0258]
[1756071888722,1.7048,4800.8,4800.7,21.0258]
[1756071889425,3.1431,4800.9,4800.8,1.0768]
[1756071889722,3.1431,4800.9,4800.8,21.0248]
[1756071889924,2.6138,4800.9,4800.8,21.0248]
[1756071891226,3.1431,4800.9,4800.8,21.0248]
[1756071891421,2.6138,4800.9,4800.8,21.0248]
[1756071891823,1.3656,4801.2,4800.8,20.4092]
[1756071892023,1.3656,4801.2,4801.1,1.0768]
[1756071892328,2.6138,4801.2,4801.1,1.0768]
[1756071892624,3.1431,4801.2,4801.1,0.4612]
[1756071893028,3.1431,4800.6,4800.5,0.4612]
[1756071893216,0.17265693,4803.7,4799.8,3.2078]
[1756071893217,1.2482,4799.9,4799.8,3.2078]
[1756071893524,3.1431,4799.9,4799.8,3.669]
[1756071893728,3.1431,4799.9,4799.8,23.1518]
[1756071894120,3.1431,4799.9,4799.8,19.944]
[1756071894922,1.2482,4799.1,4799.0,1.0768]
[1756071895123,3.1431,4799.1,4799.0,20.4042]
[1756071895520,3.1431,4799.1,4799.0,0.4612]
[1756071895726,3.1431,4799.1,4799.0,20.4032]
[1756071896124,3.1431,4799.1,4799.0,0.4612]
[1756071896329,3.1431,4799.1,4799.0,20.4032]
[1756071896725,1.4383,4799.0,4798.9,19.942]
[1756071896932,3.1431,4798.9,4798.8,20.4022]
[1756071897425,2.6138,4798.9,4798.8,21.0178]
[1756071897633,3.0907,4798.9,4798.8,0.4612]
[1756071898033,3.0907,4798.9,4798.8,20.4032]
[1756071898627,3.2078,4799.2,4798.8,20.9982]
[1756071898827,3.8791,4799.2,4799.1,0.4466]
[1756071899026,6.1902,4799.2,4799.1,0.4466]
[1756071899231,6.1902,4799.2,4799.1,20.3906]
[1756071899533,6.1902,4799.2,4799.1,20.3896]
[1756071899926,6.1902,4799.2,4799.1,0.4466]
[1756071902931,1.8247,4799.1,4797.9,3.8028]
[1756071903231,1.6346,4799.0,4798.9,0.4466]
[1756071903634,1.1577,4798.5,4798.4,0.4466]
[1756071903828,2.9824,4798.5,4798.4,0.4466]
[1756071905338,2.9824,4798.4,4798.3,19.94]
[1756071906029,1.1577,4798.4,4797.9,3.2078]
[1756071906229,1.1577,4798.0,4797.9,3.6544]
[1756071906435,1.8247,4797.9,4797.5,30.0]
[1756071906635,1.1577,4798.0,4797.9,19.94]
[1756071906839,1.1577,4798.0,4797.9,20.9816]
[1756071907235,1.3478,4798.3,4797.9,20.3866]
[1756071907436,3.2078,4798.7,4798.6,0.4466]
[1756071907636,3.2078,4798.7,4798.6,20.9816]
[1756071910742,0.16874105,4800.8,4798.6,20.9816]
[1756071910743,1.3478,4798.9,4798.6,19.94]
[1756071911040,14.085,4808.2,4799.8,0.4466]
[1756071911041,1.3478,4799.9,4799.8,0.4466]
[1756071911242,1.3478,4799.9,4799.8,20.3846]
[1756071911546,0.6713,4800.0,4799.8,20.3846]
[1756071911846,3.2078,4800.1,4800.0,1.0416]
[1756071912042,4.5556,4800.1,4800.0,1.0416]
[1756071912744,5.7133,4800.1,4800.0,1.0416]
[1756071913047,4.5556,4800.1,4800.0,1.0416]
[1756071913242,3.2078,4800.1,4800.0,1.0416]
[1756071914037,0.25786891,4801.3,4800.1,1.04175]
[1756071914247,1.2096,4801.4,4801.3,1.8098]
[1756071914441,1.6346,4801.4,4801.3,22.0811]
[1756071914643,2.3059,4801.4,4801.3,22.0811]
[1756071914843,1.829,4801.4,4801.3,22.0811]
[1756071915048,1.0833,4801.4,4801.3,22.4931]
[1756071915245,2.3059,4802.0,4801.9,0.8946]
[1756071915546,2.3059,4802.0,4801.9,21.7428]
[1756071916052,0.6713,4802.0,4801.9,22.4911]
[1756071916245,1.829,4802.0,4801.9,22.0791]
[1756071916450,2.9824,4802.0,4801.9,22.0791]
[1756071917352,2.9824,4802.0,4801.9,19.933]
[1756071917549,1.1577,4801.6,4801.5,1.3632]
[1756071917747,2.9824,4801.6,4801.5,19.932]
[1756071917947,1.1577,4801.3,4801.2,3.6558]
[1756071918251,2.9824,4801.3,4801.2,23.5868]
[1756071918755,2.9824,4801.3,4801.2,3.6558]
[1756071919052,2.9824,4800.9,4800.8,19.928]
[1756071920553,2.9824,4800.9,4800.1,4.123]
[1756071920753,1.1577,4800.3,4800.2,19.925]
[1756071920943,2.9824,4800.3,4800.2,19.925]
[1756071921150,3.2078,4801.1,4800.3,0.9152]
[1756071921343,2.3111,4800.4,4800.3,2.1461]
[1756071921546,2.9824,4800.4,4800.3,2.1461]
[1756071921748,2.9824,4800.4,4800.3,1.8098]
[1756071922059,1.1577,4800.4,4800.2,19.925]
[1756071922351,3.2078,4801.1,4800.2,21.1559]
[1756071922552,2.9824,4801.0,4800.9,2.1461]
[1756071922751,1.404,4801.0,4800.9,22.0701]
[1756071922951,0.6713,4801.0,4800.9,22.4821]
[1756071923152,0.6713,4801.0,4800.9,22.0701]
[1756071923458,1.404,4801.0,4800.9,22.0701]
[1756071923658,0.6713,4801.0,4800.9,22.4821]
[1756071923955,2.9824,4801.0,4800.9,22.0701]
[1756071925851,2.5055,4801.0,4800.9,22.0701]
[1756071926046,0.6713,4801.0,4800.9,21.7308]
[1756071926254,2.9824,4801.0,4800.9,22.0671]
[1756071926954,2.9824,4801.0,4800.9,2.1461]
[1756071927151,2.9824,4801.0,4800.9,20.8146]
[1756071927656,2.9824,4801.0,4800.9,22.0661]
[1756071928156,0.6422,4801.3,4800.9,22.4753]
[1756071928355,3.2078,4801.7,4801.2,1.222]
[1756071928552,3.6531,4801.7,4801.6,2.1157]
[1756071928754,3.2078,4801.7,4801.6,2.5249]
[1756071928960,5.0552,4801.7,4801.6,2.1157]
[1756071929259,6.2478,4801.7,4801.6,2.1157]
[1756071932658,6.2478,4801.7,4801.6,22.0307]
[1756071932961,3.04,4801.7,4801.6,22.0307]
[1756071933360,3.04,4800.8,4800.7,2.1133]
[1756071933558,3.04,4800.8,4800.7,20.7893]
[1756071934154,3.04,4800.8,4800.7,19.913]
[1756071934660,3.04,4800.5,4800.4,1.7676]
[1756071934859,3.04,4800.5,4800.4,21.6806]
[1756071935459,3.04,4800.5,4800.4,22.0263]
[1756071935857,3.04,4800.5,4800.4,21.779]
[1756071936161,3.04,4800.5,4800.4,19.912]
[1756071936460,3.04,4800.5,4800.4,21.3803]
[1756071936656,3.04,4800.5,4800.4,22.0253]
[1756071937055,3.04,4800.4,4800.2,0.2463]
[1756071937263,3.04,4800.4,4800.3,21.3793]
[1756071937459,3.04,4800.4,4800.3,22.0243]
[1756071937655,3.2078,4800.9,4800.3,22.0243]
[1756071937656,3.2078,4800.9,4800.4,0.645]
[1756071937856,4.0853,4800.9,4800.8,2.1133]
[1756071938058,5.6056,4800.9,4800.8,22.0233]
[1756071938260,6.2478,4800.9,4800.8,22.0233]
[1756071938962,6.2478,4800.9,4800.8,19.91]
[1756071939657,6.2478,4800.9,4800.8,20.9482]
[1756071939963,6.2478,4800.9,4800.8,22.0233]
[1756071940263,6.2478,4800.9,4800.8,20.3562]
[1756071941162,6.2478,4800.9,4800.8,19.91]
[1756071941461,6.2478,4800.9,4800.8,20.3562]
[1756071941652,6.2478,4800.9,4800.8,21.132]
[1756071941864,3.85,4800.9,4800.8,22.4294]
[1756071942256,5.7309,4800.9,4800.8,2.1133]
[1756071942460,6.2478,4800.9,4800.8,20.7853]
[1756071942765,3.2078,4800.9,4800.8,22.4274]
[1756071943151,1.1926,4801.7,4800.8,22.4274]
[1756071943152,3.2078,4801.6,4801.5,0.7919]
[1756071943353,3.2078,4801.6,4801.5,22.4264]
[1756071943759,3.2078,4802.1,4802.0,1.0912]
[1756071943954,3.2078,4802.1,4802.0,20.9982]
[1756071944563,3.85,4803.1,4803.0,0.4462]
[1756071944761,6.2478,4803.1,4803.0,20.6632]
[1756071944962,5.0552,4803.1,4803.0,20.6632]
[1756071945161,3.85,4803.1,4803.0,20.6632]
[1756071945361,3.2078,4803.1,4803.0,20.6632]
[1756071946662,3.2078,4803.1,4803.0,25.07965]
[1756071946872,0.6422,4803.9,4803.0,25.07965]
[1756071947064,1.0875,4803.9,4803.8,0.4462]
[1756071947265,0.6422,4803.9,4803.8,20.6582]
[1756071947964,2.0909,4803.9,4803.8,20.6582]
[1756071948360,0.6422,4803.9,4803.8,20.6582]
[1756071948561,2.0909,4803.9,4803.8,20.6582]
[1756071949161,2.5231,4803.9,4803.8,20.6582]
[1756071949764,3.04,4803.9,4803.8,19.901]
[1756071949959,1.2052,4803.9,4803.8,19.9]
[1756071950468,1.2052,4803.9,4803.4,0.311]
[1756071950673,1.2052,4803.6,4803.5,20.3422]
[1756071950864,3.04,4803.6,4803.5,20.6532]
[1756071951564,0.6422,4803.6,4803.5,20.6532]
[1756071951770,3.04,4803.6,4803.5,20.6532]
[1756071951965,0.6422,4803.6,4803.5,20.6532]
[1756071952166,3.04,4803.6,4803.5,20.6532]
[1756071953770,2.5231,4803.5,4803.4,0.4462]
[1756071953970,3.04,4803.5,4803.4,20.6502]
[1756071954268,3.04,4803.5,4803.4,0.7572]
[1756071954467,2.5231,4803.5,4803.4,20.6482]
[1756071955160,3.04,4803.5,4803.4,20.6482]
[1756071956064,3.04,4803.5,4803.4,0.7572]
[1756071956264,3.04,4803.5,4803.4,20.6472]
[1756071959270,3.04,4803.5,4803.4,0.7572]
[1756071959469,3.04,4803.5,4803.4,20.6432]
[1756071960472,3.04,4803.5,4803.4,20.3322]
[1756071960667,3.04,4803.5,4803.4,0.4462]
[1756071961171,3.04,4803.5,4803.4,20.3292]
[1756071961366,1.8529,4803.1,4803.0,0.7524]
[1756071961566,3.004,4803.1,4803.0,0.7524]
[1756071961765,3.004,4803.1,4803.0,20.6344]
[1756071961962,1.2215,4803.1,4803.0,19.882]
[1756071962667,3.004,4803.1,4803.0,19.882]
[1756071962867,3.004,4803.1,4803.0,20.6344]
[1756071964369,3.004,4803.1,4802.5,0.41649]
[1756071964574,2.2425,4802.7,4802.6,20.6314]
[1756071964768,2.0517,4802.7,4802.6,0.7524]
[1756071964968,3.004,4802.7,4802.6,20.6314]
[1756071965773,3.004,4802.7,4802.6,19.879]
[1756071966071,1.2215,4802.2,4802.1,19.878]
[1756071966272,3.004,4802.2,4802.1,19.878]
[1756071966473,1.2215,4802.2,4801.9,19.877]
[1756071966775,1.2215,4802.0,4801.9,19.877]
[1756071966975,0.7615,4802.0,4801.9,20.6294]
[1756071967175,1.2215,4802.0,4801.9,20.6294]
[1756071967376,3.004,4802.0,4801.9,20.6294]
[1756071967577,0.4923,4803.1,4802.0,0.2882]
[1756071967771,0.6314,4803.0,4802.0,0.2882]
[1756071968069,1.8529,4802.8,4802.7,0.4341]
[1756071968276,2.3452,4802.8,4802.7,0.4341]
[1756071968872,1.1237,4802.7,4802.5,19.877]
[1756071969072,2.3452,4802.6,4802.5,20.3111]
[1756071969571,3.004,4802.6,4802.5,20.3111]
[1756071970277,3.004,4802.6,4802.5,0.4341]
[1756071970873,1.0914,4803.0,4802.9,0.4341]
[1756071971073,1.4359,4803.0,4802.9,0.4341]
[1756071971471,2.5117,4803.0,4802.9,0.4341]
[1756071971872,2.5117,4803.0,4802.9,1.13877]
[1756071971873,0.6588,4803.0,4802.9,1.13877]
[1756071972172,3.2078,4803.3,4803.2,1.13874]
[1756071973573,1.2902,4803.7,4803.4,0.41642]
[1756071973881,1.2902,4803.7,4803.6,0.4341]
[1756071974477,1.2902,4803.7,4803.6,0.7223]
[1756071974878,0.6588,4803.7,4803.6,0.7223]
[1756071975179,2.5117,4803.7,4803.6,0.4341]
[1756071975372,3.004,4803.7,4803.6,0.4341]
[1756071975573,2.5117,4803.7,4803.6,0.4341]
[1756071976078,3.004,4803.7,4803.6,0.4341]
[1756071977875,1.2215,4803.7,4803.2,0.41645]
[1756071978081,0.3445,4803.4,4803.3,20.3021]
[1756071978278,2.5117,4803.4,4803.3,20.3021]
[1756071979075,3.004,4803.4,4803.3,20.3021]
[1756071980081,2.5117,4803.4,4803.3,20.3021]
[1756071980382,0.6588,4803.4,4803.3,20.5903]
[1756071980981,1.2902,4803.4,4803.3,20.5903]
[1756071983781,0.6588,4803.4,4803.3,20.5903]
[1756071985185,2.5117,4803.4,4803.3,20.3021]
[1756071985381,3.2078,4804.4,4804.3,0.4341]
[1756071985678,1.48941413,4805.9,4804.3,0.4341]
[1756071985679,2.9196,4805.1,4805.0,0.4341]
[1756071985886,3.2078,4805.8,4805.7,0.41623]
[1756071986181,3.8392,4806.5,4806.1,0.41619]
[1756071986386,0.6588,4806.3,4806.2,19.855]
[1756071986782,3.2078,4806.5,4806.3,0.41618]
[1756071986981,3.2078,4807.2,4806.4,4.0]
[1756071987176,0.6588,4807.8,4806.6,0.41616]
[1756071987374,0.6588,4807.8,4806.5,3.2078]
[1756071987375,0.6588,4807.7,4807.1,0.41611]
[1756071987679,3.0093,4807.3,4807.2,19.853]
[1756071987880,2.4984,4807.3,4807.2,19.853]
[1756071988279,0.6489,4807.2,4806.6,0.41615]
[1756071988478,0.6489,4807.1,4806.8,0.41614]
[1756071989086,0.6489,4807.1,4806.9,0.41612]
[1756071989582,0.6489,4808.1,4807.1,0.41611]
[1756071989776,0.6489,4808.1,4807.2,19.846]
[1756071989982,0.628,4808.0,4807.2,19.846]
[1756071990179,1.0573,4807.9,4807.3,0.41609]
[1756071990380,0.6489,4807.8,4807.6,0.41607]
[1756071990585,2.4613,4807.8,4807.7,19.844]
[1756071991280,1.2769,4807.8,4807.7,19.844]
[1756071991482,0.6489,4807.8,4807.7,19.844]
[1756071992583,3.2078,4808.3,4807.9,0.41604]
[1756071993090,3.2078,4809.5,4808.0,6.68344889]
[1756071993285,3.8567,4810.0,4809.3,0.41592]
[1756071993488,3.8567,4810.0,4809.5,0.4159]
[1756071993683,0.6489,4809.9,4809.5,0.4159]
[1756071994186,0.6489,4809.9,4809.5,0.41591]